bitfinex/quotes_SOLUSD_20220130
["timestamp","ask_amount","ask_price","bid_price","bid_amount"]
[1643557769333,1.45962049,95.406,95.315,0.25]
[1643557769534,1.45962049,95.408,95.315,0.25]
[1643557769736,1.45962049,95.408,95.324,6.0]
[1643557769936,120.04,95.41,95.325,22.9874]
[1643557770135,120.04,95.41,95.325,23.2374]
[1643557771641,120.04,95.41,95.33,15.736]
[1643557771840,120.04,95.41,95.331,0.25]
[1643557772039,104.9,95.41,95.34,6.0]
[1643557772239,104.9,95.41,95.341,24.3147]
[1643557772439,104.9,95.41,95.341,24.5647]
[1643557772640,0.25,95.409,95.341,24.5647]
[1643557773241,0.25,95.409,95.341,24.3147]
[1643557773441,0.25,95.409,95.321,24.6648]
[1643557773643,0.25,95.409,95.322,24.3045]
[1643557775448,0.25,95.409,95.322,24.0545]
[1643557775644,0.25,95.409,95.323,0.25]
[1643557775845,104.9,95.412,95.322,24.0545]
[1643557776245,0.25,95.411,95.322,24.0545]
[1643557776646,15.74,95.4,95.322,24.0545]
[1643557776844,104.9,95.399,95.322,24.0545]
[1643557777545,15.741,95.39,95.323,0.25]
[1643557777947,104.9,95.399,95.322,24.0545]
[1643557778148,104.9,95.399,95.321,24.6648]
[1643557778346,107.85669142,95.399,95.321,24.6648]
[1643557779448,1.45962049,95.397,95.321,24.6648]
[1643557780149,104.9,95.389,95.321,24.6648]
[1643557780348,1.45962049,95.395,95.321,24.6648]
[1643557780551,1.45962049,95.395,95.322,24.3783]
[1643557780950,22.8729,95.399,95.322,24.3783]
[1643557781555,22.8729,95.399,95.322,24.1283]
[1643557781750,22.8729,95.399,95.323,0.25]
[1643557782853,22.8729,95.399,95.33,15.736]
[1643557783151,15.14,95.41,95.33,15.736]
[1643557783357,15.14,95.41,95.331,0.25]
[1643557783556,15.14,95.41,95.331,2.52529085]
[1643557783752,104.9,95.409,95.331,0.25]
[1643557783952,105.15,95.409,95.331,0.25]
[1643557785356,15.739,95.4,95.323,0.25]
[1643557785755,105.15,95.409,95.323,0.25]
[1643557788158,104.9,95.399,95.322,24.1283]
[1643557788460,24.1143,95.398,95.323,0.25]
[1643557788660,104.9,95.397,95.322,24.1283]
[1643557789360,0.25,95.396,95.322,24.1283]
[1643557792164,0.25,95.396,95.323,0.25]
[1643557793186,24.1143,95.398,95.323,0.25]
[1643557793591,24.1143,95.398,95.332,6.0]
[1643557793788,24.1143,95.398,95.333,23.0292]
[1643557793989,24.1143,95.398,95.334,6.0]
[1643557794190,1.45962049,95.406,95.343,6.0]
[1643557794388,1.45962049,95.406,95.35,15.733]
[1643557794587,1.45962049,95.413,95.36,6.0]
[1643557794788,1.45962049,95.419,95.361,22.7792]
[1643557794988,1.45962049,95.42,95.361,22.7792]
[1643557795187,1.45962049,95.421,95.361,22.7792]
[1643557795387,1.45962049,95.423,95.361,22.7792]
[1643557795788,1.45962049,95.421,95.361,22.7792]
[1643557795991,1.45962049,95.419,95.344,0.25]
[1643557796193,1.45962049,95.414,95.336,0.25]
[1643557796391,1.45962049,95.414,95.316,1.43736121]
[1643557796591,1.45962049,95.405,95.307,1.43736121]
[1643557796895,1.45962049,95.405,95.308,0.2]
[1643557797090,129.48,95.409,95.309,0.2]
[1643557797091,46.21067465,95.392,95.309,0.2]
[1643557797291,39.82140649,95.391,95.31,0.2]
[1643557797490,1.45962049,95.39,95.311,0.2]
[1643557797691,1.45962049,95.39,95.312,0.2]
[1643557797891,1.45962049,95.389,95.313,0.1]
[1643557798191,15.743,95.38,95.314,0.2]
[1643557798392,104.9,95.379,95.293,0.2]
[1643557798591,104.9,95.379,95.3,15.741]
[1643557798899,104.9,95.379,95.301,0.2]
[1643557799091,104.9,95.379,95.322,23.0455]
[1643557799492,24.1107,95.391,95.322,23.0455]
[1643557799690,104.9,95.391,95.323,0.25]
[1643557800291,24.366,95.39,95.322,23.0455]
[1643557800491,104.9,95.389,95.322,23.0455]
[1643557801692,46.21067465,95.392,95.322,23.0455]
[1643557801895,15.741,95.39,95.322,23.0455]
[1643557802697,151.11067465,95.392,95.322,23.0455]
[1643557803296,104.9,95.39,95.322,23.0455]
[1643557804102,120.64,95.39,95.322,23.0455]
[1643557805101,122.09962049,95.39,95.322,23.0455]
[1643557805301,0.25,95.389,95.322,23.0455]
[1643557806302,0.25,95.389,95.323,0.25]
[1643557806705,0.25,95.389,95.322,23.0455]
[1643557807703,14.250513,95.388,95.322,23.0455]
[1643557807903,104.9,95.387,95.322,23.0455]
[1643557808603,104.9,95.387,95.323,0.25]
[1643557808803,104.9,95.387,95.322,23.0455]
[1643557811206,104.9,95.387,95.311,0.2]
[1643557811410,2.95669142,95.386,95.311,0.1]
[1643557811606,3.20669142,95.386,95.3,6.0]
[1643557811809,0.25,95.386,95.301,0.25]
[1643557812006,0.25,95.386,95.301,6.25]
[1643557812207,15.743,95.38,95.301,6.25]
[1643557812406,15.743,95.38,95.302,6.0]
[1643557812607,128.7987,95.379,95.302,23.2974]
[1643557812808,128.7987,95.379,95.303,0.45]
[1643557813209,15.743,95.37,95.303,0.45]
[1643557813406,104.9,95.369,95.303,0.45]
[1643557814812,24.0017,95.368,95.303,0.45]
[1643557815210,105.15,95.367,95.303,0.45]
[1643557815614,15.745,95.36,95.303,0.45]
[1643557815811,38.36978041,95.359,95.303,0.45]
[1643557816013,38.36978041,95.359,95.303,0.2]
[1643557816214,104.9,95.358,95.303,0.2]
[1643557816414,58.582669,95.357,95.303,0.2]
[1643557816614,15.14,95.35,95.279,1.43736121]
[1643557816815,15.14,95.35,95.272,1.43736121]
[1643557817018,1.45962049,95.342,95.248,1.43736121]
[1643557817214,39.06057194,95.319,95.244,1.43736121]
[1643557817415,22.6833,95.318,95.241,0.2]
[1643557817614,104.9,95.317,95.241,0.2]
[1643557817920,104.9,95.317,95.241,0.45]
[1643557818614,104.9,95.309,95.241,0.45]
[1643557820217,104.9,95.309,95.241,0.2]
[1643557821422,0.25,95.308,95.241,0.45]
[1643557826744,0.25,95.308,95.241,0.2]
[1643557827144,104.9,95.317,95.241,0.2]
[1643557827748,15.753,95.31,95.241,0.2]
[1643557827948,15.753,95.31,95.216,1.43736121]
[1643557828147,15.753,95.31,95.212,0.2]
[1643557828350,107.85669142,95.309,95.212,0.2]
[1643557828748,2.95669142,95.308,95.212,0.2]
[1643557828948,104.9,95.309,95.221,6.0]
[1643557829149,104.9,95.309,95.223,6.0]
[1643557829348,0.25,95.308,95.224,0.25]
[1643557830549,0.25,95.308,95.223,0.45]
[1643557831149,15.755,95.3,95.223,0.45]
[1643557831551,104.9,95.298,95.223,0.45]
[1643557833251,15.753,95.31,95.23,15.753]
[1643557833451,15.753,95.31,95.231,0.2]
[1643557833452,104.9,95.304,95.231,0.2]
[1643557833652,104.9,95.304,95.223,0.45]
[1643557834252,104.9,95.304,95.23,15.753]
[1643557834452,104.9,95.304,95.231,0.2]
[1643557834653,104.9,95.304,95.231,0.45]
[1643557835152,0.25,95.303,95.231,0.45]
[1643557835553,0.25,95.303,95.24,21.751]
[1643557835753,39.06057194,95.319,95.241,25.0977]
[1643557835953,0.25,95.318,95.242,0.2]
[1643557836162,105.15,95.318,95.242,0.2]
[1643557836356,129.4739,95.318,95.242,0.2]
[1643557836955,105.15,95.318,95.242,0.2]
[1643557837955,35.44918637,95.317,95.242,0.2]
[1643557838155,104.9,95.316,95.242,0.2]
[1643557838555,15.753,95.31,95.242,0.2]
[1643557838956,104.9,95.309,95.242,0.2]
[1643557841058,15.755,95.3,95.242,0.2]
[1643557841259,104.9,95.299,95.242,0.2]
[1643557842261,24.1883,95.316,95.242,0.45]
[1643557842960,1.45962049,95.346,95.242,0.45]
[1643557843361,15.14,95.34,95.251,6.0]
[1643557843561,1.45962049,95.369,95.26,6.0]
[1643557843761,1.45962049,95.376,95.262,1.43736121]
[1643557843961,1.45962049,95.376,95.265,6.0]
[1643557844162,1.45962049,95.378,95.272,6.0]
[1643557844462,43.91499084,95.377,95.273,24.3875]
[1643557844662,43.91499084,95.377,95.275,6.0]
[1643557844863,43.91499084,95.377,95.283,6.0]
[1643557845165,43.91499084,95.377,95.284,23.9958]
[1643557845364,0.25,95.376,95.285,0.2]
[1643557845564,0.25,95.376,95.294,6.0]
[1643557845762,105.15,95.376,95.295,25.1256]
[1643557845964,105.15,95.376,95.296,0.2]
[1643557846364,1.45962049,95.374,95.296,0.2]
[1643557846564,105.15,95.376,95.296,0.2]
[1643557846763,104.9,95.376,95.296,0.2]
[1643557847866,104.9,95.376,95.296,0.45]
[1643557848266,15.743,95.37,95.296,0.45]
[1643557848670,104.9,95.369,95.296,0.2]
[1643557850074,15.745,95.36,95.296,0.2]
[1643557850278,0.25,95.359,95.296,0.2]
[1643557850872,0.25,95.359,95.296,0.45]
[1643557851372,0.25,95.368,95.296,0.45]
[1643557851777,2.95669142,95.367,95.296,0.45]
[1643557852802,0.25,95.368,95.296,0.45]
[1643557853000,15.744,95.36,95.296,0.45]
[1643557853199,15.744,95.36,95.296,0.2]
[1643557853401,2.95669142,95.359,95.296,0.2]
[1643557853799,107.85669142,95.359,95.296,0.2]
[1643557853999,0.25,95.358,95.296,0.2]
[1643557856204,15.746,95.35,95.296,0.2]
[1643557856403,46.41524839,95.348,95.271,0.2]
[1643557856603,104.9,95.347,95.252,0.2]
[1643557856802,104.9,95.347,95.252,0.45]
[1643557857001,107.85669142,95.347,95.252,0.45]
[1643557857202,2.95669142,95.346,95.252,0.2]
[1643557857402,15.751,95.33,95.252,0.2]
[1643557857604,15.14,95.32,95.215,1.43736121]
[1643557857802,104.9,95.317,95.211,1.43736121]
[1643557858006,127.6696,95.317,95.211,1.43736121]
[1643557858203,127.6696,95.317,95.21,1.43736121]
[1643557858402,15.756,95.29,95.22,15.754]
[1643557858604,45.17350908,95.289,95.221,23.9206]
[1643557858805,15.756,95.29,95.222,0.2]
[1643557859004,104.9,95.309,95.231,6.0]
[1643557859304,104.9,95.309,95.232,23.9706]
[1643557859504,104.9,95.309,95.233,0.2]
[1643557859704,104.9,95.307,95.233,0.2]
[1643557859905,15.753,95.3,95.233,0.2]
[1643557861110,0.25,95.299,95.233,0.2]
[1643557861310,15.755,95.29,95.233,0.45]
[1643557861809,104.9,95.307,95.233,0.45]
[1643557862611,15.753,95.3,95.233,0.45]
[1643557863014,104.9,95.315,95.242,6.0]
[1643557863213,52.507,95.33,95.243,23.6389]
[1643557863412,24.7897,95.345,95.244,0.2]
[1643557863614,15.749,95.32,95.253,6.0]
[1643557863813,15.749,95.32,95.254,23.7918]
[1643557864012,15.749,95.32,95.255,0.2]
[1643557864815,0.25,95.319,95.255,0.2]
[1643557865215,64.03428478,95.344,95.26,15.748]
[1643557865413,0.25,95.343,95.261,0.45]
[1643557865617,0.25,95.343,95.255,6.2]
[1643557865813,0.25,95.343,95.256,0.25]
[1643557866014,0.25,95.343,95.264,6.0]
[1643557866214,0.25,95.343,95.265,6.0]
[1643557866414,40.49708478,95.344,95.266,22.8101]
[1643557866614,40.49708478,95.344,95.267,0.2]
[1643557866815,15.746,95.34,95.267,0.45]
[1643557867116,104.9,95.339,95.267,0.45]
[1643557867714,0.25,95.338,95.267,0.45]
[1643557867914,0.25,95.343,95.267,0.45]
[1643557868715,15.748,95.33,95.267,0.45]
[1643557869118,104.9,95.343,95.27,15.746]
[1643557869316,104.9,95.343,95.271,0.45]
[1643557869616,0.25,95.342,95.271,0.2]
[1643557870217,38.6143049,95.342,95.271,0.2]
[1643557870919,15.746,95.34,95.271,0.45]
[1643557872117,38.6143049,95.342,95.28,15.745]
[1643557872318,38.6143049,95.342,95.281,25.0063]
[1643557872518,0.25,95.342,95.282,0.2]
[1643557872720,15.745,95.35,95.282,0.2]
[1643557873718,142.72740101,95.349,95.282,0.2]
[1643557874118,142.72740101,95.349,95.282,0.45]
[1643557874317,142.72740101,95.349,95.282,0.2]
[1643557874520,15.746,95.34,95.282,0.2]
[1643557874720,15.746,95.34,95.258,1.43736121]
[1643557874919,15.746,95.34,95.261,0.25]
[1643557875419,37.82740101,95.349,95.27,15.746]
[1643557875619,37.82740101,95.349,95.271,25.1338]
[1643557875818,37.82740101,95.349,95.272,0.2]
[1643557876418,15.746,95.34,95.28,15.745]
[1643557876621,15.746,95.34,95.281,0.2]
[1643557876823,15.746,95.34,95.281,0.45]
[1643557877420,37.82740101,95.349,95.281,0.45]
[1643557878120,104.9,95.348,95.281,0.2]
[1643557878419,104.9,95.348,95.271,24.9338]
[1643557878420,104.9,95.348,95.272,0.45]
[1643557878821,104.9,95.348,95.272,0.2]
[1643557879422,104.9,95.339,95.272,0.2]
[1643557879825,0.25,95.338,95.272,0.2]
[1643557880323,0.25,95.338,95.272,0.45]
[1643557880723,37.82740101,95.349,95.272,0.45]
[1643557880924,0.25,95.348,95.272,0.45]
[1643557881724,0.25,95.348,95.28,15.745]
[1643557881924,0.25,95.348,95.281,0.45]
[1643557882623,0.25,95.348,95.281,0.25]
[1643557883026,0.25,95.348,95.272,0.45]
[1643557883225,0.25,95.348,95.29,15.743]
[1643557883425,15.742,95.36,95.291,24.1888]
[1643557883629,0.25,95.359,95.292,0.2]
[1643557884226,40.58623522,95.359,95.292,0.2]
[1643557886155,0.25,95.358,95.292,0.2]
[1643557887953,0.25,95.358,95.3,15.742]
[1643557888152,0.25,95.358,95.301,0.2]
[1643557888353,0.25,95.358,95.292,0.2]
[1643557888553,105.15,95.358,95.292,0.2]
[1643557889152,0.25,95.358,95.292,0.2]
[1643557891758,0.25,95.358,95.3,15.742]
[1643557891958,0.25,95.358,95.301,0.2]
[1643557892158,0.25,95.358,95.301,0.45]
[1643557892361,0.25,95.358,95.292,0.2]
[1643557893759,15.744,95.35,95.292,0.2]
[1643557894460,22.5865,95.358,95.292,0.2]
[1643557897865,0.25,95.357,95.292,0.2]
[1643557898464,104.9,95.349,95.292,0.2]
[1643557898667,83.943933,95.348,95.292,0.2]
[1643557898866,23.8841,95.347,95.264,1.43736121]
[1643557899067,26.84079142,95.347,95.259,1.43736121]
[1643557899264,35.87079142,95.347,95.257,1.43736121]
[1643557899466,15.747,95.34,95.257,1.43736121]
[1643557899667,104.9,95.339,95.255,1.43736121]
[1643557899867,1.45962049,95.337,95.256,0.25]
[1643557900067,25.14092049,95.336,95.252,0.25]
[1643557900266,1.45962049,95.334,95.252,0.25]
[1643557900468,15.14,95.33,95.252,0.25]
[1643557900770,104.9,95.319,95.252,0.25]
[1643557900966,23.6813,95.318,95.243,0.25]
[1643557901170,104.9,95.317,95.243,0.25]
[1643557901369,104.9,95.317,95.242,0.25]
[1643557901575,15.751,95.31,95.242,0.25]
[1643557901771,104.9,95.309,95.234,1.43736121]
[1643557901970,104.9,95.309,95.23,1.43736121]
[1643557902369,104.9,95.309,95.227,1.43736121]
[1643557902570,15.754,95.29,95.226,1.43736121]
[1643557902770,39.52830138,95.289,95.226,1.43736121]
[1643557902969,39.52830138,95.289,95.216,24.5387]
[1643557902970,39.52830138,95.289,95.224,1.43736121]
[1643557903169,0.25,95.316,95.224,1.43736121]
[1643557903370,0.25,95.316,95.231,1.43736121]
[1643557903571,15.75,95.31,95.237,1.43736121]
[1643557903770,15.75,95.31,95.238,0.25]
[1643557903972,15.75,95.31,95.24,15.751]
[1643557903973,104.9,95.309,95.24,15.751]
[1643557904175,147.75885535,95.309,95.241,0.2]
[1643557904373,147.75885535,95.309,95.233,1.68736121]
[1643557904575,147.75885535,95.309,95.233,0.25]
[1643557904772,15.753,95.3,95.233,0.25]
[1643557905371,15.753,95.3,95.21,52.504]
[1643557905372,15.753,95.3,95.223,1.43736121]
[1643557905772,15.753,95.3,95.224,1.68736121]
[1643557905972,42.85885535,95.309,95.24,15.751]
[1643557906174,42.85885535,95.309,95.241,22.8935]
[1643557906373,42.85885535,95.309,95.242,0.2]
[1643557906973,15.751,95.3,95.242,0.2]
[1643557907774,15.751,95.3,95.242,0.45]
[1643557908874,0.25,95.299,95.242,0.45]
[1643557910274,15.753,95.29,95.242,0.45]
[1643557911279,22.8644,95.307,95.242,0.45]
[1643557911280,15.752,95.3,95.242,0.45]
[1643557911478,22.8644,95.307,95.242,0.45]
[1643557912303,0.25,95.306,95.242,0.45]
[1643557917180,0.25,95.306,95.25,15.75]
[1643557917381,0.25,95.306,95.251,0.45]
[1643557917980,15.751,95.3,95.251,0.25]
[1643557918181,0.25,95.306,95.251,0.25]
[1643557918381,22.8644,95.307,95.251,0.25]
[1643557918582,22.8644,95.307,95.242,0.45]
[1643557920584,22.8644,95.307,95.25,15.75]
[1643557920783,22.8644,95.307,95.251,0.45]
[1643557920985,22.8644,95.307,95.242,0.45]
[1643557921788,0.25,95.306,95.242,0.45]
[1643557922586,15.751,95.3,95.242,0.45]
[1643557925595,0.25,95.299,95.242,0.45]
[1643557926196,0.25,95.299,95.242,0.2]
[1643557926496,15.753,95.29,95.242,0.2]
[1643557926698,0.25,95.299,95.242,0.2]
[1643557927000,22.8644,95.307,95.242,0.2]
[1643557927203,0.25,95.306,95.242,0.2]
[1643557927720,15.752,95.3,95.242,0.2]
[1643557928724,15.752,95.3,95.242,0.45]
[1643557928922,0.25,95.299,95.242,0.45]
[1643557929121,1.45962049,95.321,95.242,0.45]
[1643557929321,1.45962049,95.326,95.244,1.43736121]
[1643557929521,24.7147,95.329,95.249,1.43736121]
[1643557929825,37.32648331,95.328,95.25,0.25]
[1643557930021,37.32648331,95.328,95.25,1.68736121]
[1643557930822,37.32648331,95.328,95.25,0.25]
[1643557931022,15.748,95.32,95.25,16.0]
[1643557931222,15.748,95.32,95.251,0.2]
[1643557931522,15.748,95.32,95.251,0.45]
[1643557931721,15.748,95.32,95.258,6.0]
[1643557931925,24.7147,95.329,95.259,28.85]
[1643557932222,17.21204857,95.359,95.27,15.745]
[1643557932223,1.45962049,95.348,95.27,15.745]
[1643557932426,1.45962049,95.348,95.271,25.0404]
[1643557932624,1.45962049,95.354,95.272,0.2]
[1643557933125,45.41880861,95.353,95.281,6.0]
[1643557933324,45.41880861,95.353,95.282,0.25]
[1643557933525,45.41880861,95.353,95.29,15.743]
[1643557933526,15.743,95.35,95.29,15.743]
[1643557933827,1.45962049,95.357,95.291,24.1636]
[1643557934024,25.85422049,95.358,95.292,0.2]
[1643557934226,24.3946,95.358,95.292,0.2]
[1643557934826,24.3946,95.358,95.3,15.742]
[1643557935029,24.3946,95.358,95.301,0.2]
[1643557935227,24.3946,95.358,95.292,0.2]
[1643557935827,15.743,95.35,95.292,0.2]
[1643557936327,0.25,95.349,95.292,0.2]
[1643557936926,15.744,95.34,95.292,0.2]
[1643557937329,15.744,95.34,95.301,6.0]
[1643557937729,0.25,95.357,95.301,6.0]
[1643557937930,0.25,95.357,95.302,24.1493]
[1643557938230,0.25,95.357,95.312,6.0]
[1643557938430,15.743,95.35,95.312,6.0]
[1643557941236,0.25,95.349,95.312,6.0]
[1643557941439,0.25,95.349,95.303,0.2]
[1643557942737,24.3946,95.358,95.303,0.2]
[1643557943038,0.25,95.357,95.303,0.2]
[1643557943237,105.15,95.357,95.303,0.2]
[1643557943536,105.15,95.357,95.239,104.9]
[1643557943537,105.15,95.357,95.271,23.3227]
[1643557943738,105.15,95.357,95.272,0.2]
[1643557944136,15.743,95.35,95.28,15.744]
[1643557944336,15.743,95.35,95.281,0.45]
[1643557944538,104.9,95.349,95.281,0.2]
[1643557944739,104.9,95.349,95.272,0.2]
[1643557944939,2.95669142,95.348,95.272,0.2]
[1643557945142,2.95669142,95.348,95.224,2.85046217]
[1643557945143,37.54445611,95.329,95.244,24.4121]
[1643557945340,60.89155611,95.329,95.245,0.2]
[1643557945543,2.95669142,95.328,95.245,0.2]
[1643557945742,11.93669142,95.328,95.245,0.2]
[1643557945946,52.511,95.32,95.245,0.45]
[1643557946166,15.754,95.31,95.245,0.2]
[1643557946366,15.754,95.31,95.245,0.45]
[1643557947968,15.752,95.3,95.245,0.45]
[1643557948368,0.25,95.309,95.241,0.45]
[1643557948569,0.25,95.309,95.241,0.25]
[1643557948769,0.25,95.309,95.23,6.0]
[1643557948970,0.25,95.309,95.25,15.75]
[1643557949168,0.25,95.309,95.251,0.2]
[1643557949368,0.25,95.309,95.231,0.25]
[1643557949568,52.511,95.32,95.231,0.25]
[1643557949968,15.751,95.3,95.24,15.751]
[1643557950168,15.751,95.3,95.241,0.2]
[1643557950371,15.751,95.3,95.241,0.45]
[1643557950672,104.9,95.326,95.241,0.45]
[1643557950869,104.9,95.326,95.23,1.43736121]
[1643557951070,107.85669142,95.326,95.223,1.43736121]
[1643557951269,107.85669142,95.326,95.22,1.43736121]
[1643557951469,15.75,95.31,95.23,15.753]
[1643557951669,104.9,95.309,95.231,0.2]
[1643557951870,52.511,95.31,95.231,0.45]
[1643557952068,52.511,95.31,95.231,0.2]
[1643557952270,104.9,95.311,95.231,0.2]
[1643557952472,15.754,95.29,95.221,0.25]
[1643557952669,15.754,95.29,95.221,0.45]
[1643557953075,15.754,95.29,95.221,0.25]
[1643557953670,52.508,95.32,95.23,15.753]
[1643557953671,15.751,95.3,95.23,15.753]
[1643557953870,15.751,95.3,95.231,0.45]
[1643557954270,15.751,95.3,95.231,0.25]
[1643557954470,41.24611648,95.299,95.231,0.25]
[1643557954671,41.24611648,95.299,95.24,15.751]
[1643557954872,15.753,95.29,95.241,0.45]
[1643557955171,41.24611648,95.299,95.231,0.25]
[1643557955573,104.9,95.317,95.231,0.25]
[1643557955772,15.75,95.31,95.24,15.752]
[1643557955971,15.75,95.31,95.241,0.2]
[1643557956171,15.75,95.31,95.25,6.0]
[1643557956371,15.75,95.31,95.251,0.25]
[1643557957170,0.25,95.309,95.251,0.45]
[1643557959071,15.751,95.3,95.251,0.45]
[1643557959272,15.751,95.3,95.241,0.45]
[1643557963075,0.25,95.299,95.25,15.75]
[1643557963378,52.505,95.32,95.251,0.45]
[1643557963575,0.25,95.309,95.229,1.43736121]
[1643557963776,0.25,95.319,95.23,0.25]
[1643557963976,0.25,95.319,95.23,6.0]
[1643557963977,34.22329921,95.319,95.23,6.0]
[1643557964375,34.22329921,95.319,95.231,0.25]
[1643557965077,15.751,95.3,95.24,15.751]
[1643557965274,15.751,95.3,95.241,0.45]
[1643557966476,15.75,95.31,95.25,15.75]
[1643557966676,0.25,95.299,95.251,0.2]
[1643557966977,0.25,95.309,95.251,0.45]
[1643557970181,0.25,95.309,95.23,59.93336121]
[1643557970182,0.25,95.309,95.231,0.45]
[1643557970382,33.97329921,95.319,95.231,0.45]
[1643557970782,33.97329921,95.319,95.231,0.25]
[1643557971188,33.97329921,95.319,95.231,1.68736121]
[1643557971382,15.75,95.31,95.24,15.751]
[1643557971583,15.75,95.31,95.241,0.2]
[1643557971784,15.75,95.31,95.241,0.45]
[1643557972485,15.75,95.31,95.25,15.75]
[1643557972687,15.75,95.31,95.251,0.2]
[1643557972888,15.75,95.31,95.251,0.45]
[1643557973286,0.25,95.309,95.251,0.45]
[1643557973489,15.751,95.3,95.251,0.45]
[1643557973687,15.751,95.3,95.251,0.25]
[1643557973887,15.751,95.3,95.241,0.45]
[1643557975090,15.751,95.3,95.243,1.43736121]
[1643557975289,15.751,95.3,95.244,0.25]
[1643557975690,15.751,95.3,95.244,1.68736121]
[1643557977192,15.751,95.3,95.245,1.43736121]
[1643557977492,15.751,95.3,95.246,0.25]
[1643557977791,15.753,95.29,95.246,0.25]
[1643557978594,15.753,95.29,95.243,1.43736121]
[1643557978793,15.753,95.29,95.244,0.25]
[1643557979821,15.753,95.29,95.243,0.25]
[1643557981224,15.753,95.29,95.242,1.88736121]
[1643557981623,15.753,95.29,95.242,0.45]
[1643557982023,15.753,95.29,95.242,1.88736121]
[1643557982823,0.25,95.299,95.242,1.88736121]
[1643557983122,0.25,95.299,95.243,1.43736121]
[1643557983323,0.25,95.299,95.244,0.25]
[1643557984323,0.25,95.299,95.244,1.68736121]
[1643557984623,0.25,95.299,95.244,1.43736121]
[1643557984925,15.753,95.29,95.245,0.25]
[1643557985824,15.753,95.29,95.244,0.25]
[1643557986223,0.25,95.299,95.244,0.25]
[1643557986425,0.25,95.299,95.244,1.68736121]
[1643557986622,0.25,95.299,95.244,1.43736121]
[1643557986822,0.25,95.299,95.245,0.25]
[1643557987435,15.753,95.29,95.245,0.25]
[1643557987640,42.14589972,95.289,95.245,0.25]
[1643557988037,42.14589972,95.289,95.242,0.2]
[1643557988238,104.9,95.288,95.242,0.2]
[1643557989044,15.754,95.28,95.242,0.2]
[1643557991443,95.105157,95.279,95.242,0.2]
[1643557991647,15.763,95.27,95.206,1.43736121]
[1643557992143,15.763,95.27,95.189,1.43736121]
[1643557992342,23.4367,95.269,95.189,1.43736121]
[1643557992644,46.53821399,95.259,95.178,1.43736121]
[1643557992842,104.9,95.249,95.174,1.43736121]
[1643557993243,104.9,95.249,95.172,1.43736121]
[1643557993651,52.547,95.24,95.172,1.43736121]